bitfinex/quotes_SOLUSD_20250416
["timestamp","ask_amount","ask_price","bid_price","bid_amount"]
[1744812015660,31.15227306,124.93,124.89,23.14751526]
[1744812015965,57.15227306,124.93,124.88,23.14751526]
[1744812016567,8.00344824,124.95,124.89,23.14751526]
[1744812016746,8.00344824,124.95,124.91,23.14751526]
[1744812016946,26.0,124.94,124.9,23.14751526]
[1744812017269,62.91820568,124.94,124.9,36.91820568]
[1744812017458,26.0,124.94,124.9,36.91820568]
[1744812018372,36.91820568,124.93,124.89,36.91820568]
[1744812019080,8.0045614,124.93,124.85,18.64964886]
[1744812019270,36.91820568,124.88,124.83,44.9288179]
[1744812019451,36.91820568,124.87,124.83,8.01061222]
[1744812019650,36.91820568,124.84,124.75,8.01603206]
[1744812019854,36.91820568,124.83,124.75,8.01603206]
[1744812020053,36.91820568,124.84,124.79,36.91820568]
[1744812020260,36.91820568,124.83,124.79,36.91820568]
[1744812020974,36.91820568,124.83,124.79,44.93105767]
[1744812021479,26.0,124.85,124.8,36.91820568]
[1744812021653,36.91820568,124.86,124.81,36.91820568]
[1744812021853,8.00448251,124.93,124.85,36.91820568]
[1744812022076,8.00448251,124.93,124.89,36.91820568]
[1744812022370,36.91820568,124.92,124.88,36.91820568]
[1744812022763,44.92268819,124.93,124.89,36.91820568]
[1744812022975,70.9223397,124.94,124.89,36.91820568]
[1744812023456,26.0,124.94,124.9,36.91820568]
[1744812023904,70.92208345,124.94,124.88,8.00739946]
[1744812024055,36.91820568,124.93,124.87,18.64964886]
[1744812024563,36.91820568,124.93,124.89,36.91820568]
[1744812024874,36.91820568,124.93,124.88,36.91820568]
[1744812025072,44.92332895,124.92,124.87,36.91820568]
[1744812025269,36.91820568,124.9,124.83,6.2687]
[1744812025470,36.91820568,124.86,124.79,26.66311147]
[1744812025782,36.91820568,124.86,124.81,36.91820568]
[1744812025984,36.91820568,124.86,124.82,36.91820568]
[1744812026160,36.91820568,124.86,124.8,18.64964886]
[1744812026355,36.91820568,124.86,124.81,36.91820568]
[1744812026575,8.00885772,124.87,124.81,44.93004864]
[1744812026781,36.91820568,124.86,124.81,44.93004864]
[1744812027279,36.91820568,124.85,124.81,36.91820568]
[1744812027583,36.91820568,124.86,124.81,36.91820568]
[1744812027883,36.91820568,124.84,124.79,8.01319739]
[1744812028084,36.91820568,124.83,124.78,36.91820568]
[1744812028259,36.91820568,124.82,124.78,36.91820568]
[1744812028459,8.01025312,124.84,124.79,36.91820568]
[1744812028684,34.00986953,124.85,124.8,36.91820568]
[1744812028883,70.92807521,124.85,124.8,36.91820568]
[1744812029389,6.5634,124.88,124.82,36.91820568]
[1744812029589,26.0,124.86,124.82,36.91820568]
[1744812030084,36.91820568,124.85,124.8,36.91820568]
[1744812030306,26.0,124.86,124.82,36.91820568]
[1744812030587,70.92752333,124.86,124.81,44.93017949]
[1744812030770,26.0,124.86,124.82,36.91820568]
[1744812031163,62.91820568,124.86,124.82,36.91820568]
[1744812031363,62.91820568,124.86,124.81,8.01197381]
[1744812031664,62.91820568,124.86,124.82,36.91820568]
[1744812031903,8.00665193,124.9,124.85,36.91820568]
[1744812032194,82.9,124.91,124.81,54.04242008]
[1744812032195,26.0,124.91,124.88,36.91820568]
[1744812032373,82.9,124.93,124.88,36.91820568]
[1744812032561,8.00542785,124.92,124.88,36.91820568]
[1744812032762,44.92363353,124.92,124.87,36.91820568]
[1744812032970,36.91820568,124.91,124.87,36.91820568]
[1744812033778,44.92363353,124.92,124.87,44.92634725]
[1744812034399,36.91820568,124.92,124.87,44.92634725]
[1744812034598,36.91820568,124.92,124.84,26.0]
[1744812034599,8.00347964,124.95,124.91,36.91820568]
[1744812034777,82.9,124.96,124.93,36.91820568]
[1744812034962,44.9203616,124.97,124.92,36.91820568]
[1744812035166,36.91820568,124.94,124.9,8.00611503]
[1744812035378,36.91820568,124.94,124.9,44.92432071]
[1744812035667,36.91820568,124.94,124.89,44.92494038]
[1744812035981,62.91820568,124.96,124.91,55.56785454]
[1744812036290,8.00153154,124.98,124.93,36.91820568]
[1744812036496,8.00153154,124.98,124.88,54.02660488]
[1744812036497,36.91820568,124.97,124.88,54.02660488]
[1744812036684,36.91820568,124.94,124.89,36.91820568]
[1744812036990,44.92140696,124.95,124.9,36.91820568]
[1744812037295,36.91820568,124.93,124.88,8.00738644]
[1744812037466,62.91820568,124.93,124.88,44.92559212]
[1744812037666,36.91820568,124.92,124.88,44.92559212]
[1744812038091,62.91820568,124.93,124.88,44.92559212]
[1744812038597,44.92373201,124.92,124.86,26.6586189]
[1744812038796,36.91820568,124.91,124.86,44.92717572]
[1744812039095,36.91820568,124.91,124.86,8.00897004]
[1744812039283,36.91820568,124.91,124.87,36.91820568]
[1744812039892,36.91820568,124.91,124.86,44.92717572]
[1744812040298,44.92411921,124.91,124.86,44.92717572]
[1744812041300,8.00512327,124.92,124.86,44.92717572]
[1744812041589,34.00471751,124.93,124.87,36.91820568]
[1744812041796,70.92292319,124.93,124.88,36.91820568]
[1744812042268,36.91820568,124.92,124.88,36.91820568]
[1744812042797,62.91820568,124.93,124.88,44.9253841]
[1744812043481,36.91820568,124.92,124.88,44.9253841]
[1744812043807,26.16089484,124.98,124.9,36.91820568]
[1744812043977,8.00192046,124.97,124.93,36.91820568]
[1744812044176,70.92012614,124.97,124.92,36.91820568]
[1744812044499,44.92012614,124.97,124.92,36.91820568]
[1744812044877,70.92012614,124.97,124.92,36.91820568]
[1744812045087,34.00192046,124.97,124.92,44.92322622]
[1744812045393,70.92012614,124.97,124.92,44.92322622]
[1744812045592,36.91820568,124.96,124.91,44.92367146]
[1744812046579,44.92086326,124.96,124.91,44.92367146]
[1744812046778,8.00265758,124.96,124.92,36.91820568]
[1744812047497,70.92038329,124.97,124.92,36.91820568]
[1744812047883,36.91820568,124.96,124.92,36.91820568]
[1744812048477,36.91820568,124.94,124.89,36.91820568]
[1744812048678,36.91820568,124.93,124.89,44.92482529]
[1744812048924,36.91820568,124.94,124.89,44.92482529]
[1744812049211,36.91820568,124.93,124.89,44.92482529]
[1744812049507,8.00320128,124.95,124.86,8.00897004]
[1744812049508,36.91820568,124.91,124.86,8.00897004]
[1744812049800,36.91820568,124.88,124.84,8.01025312]
[1744812050007,36.91820568,124.89,124.84,44.9284588]
[1744812050681,36.91820568,124.88,124.84,8.01025312]
[1744812052296,36.91820568,124.88,124.84,44.9284588]
[1744812052607,36.91820568,124.89,124.84,44.9284588]
[1744812052796,36.91820568,124.88,124.84,44.9284588]
[1744812052999,36.91820568,124.89,124.84,44.9284588]
[1744812053600,44.9252677,124.89,124.84,44.9284588]
[1744812054088,8.00650412,124.9,124.84,44.9284588]
[1744812054289,36.91820568,124.89,124.84,44.9284588]
[1744812055206,36.91820568,124.88,124.83,44.92878786]
[1744812055402,36.91820568,124.87,124.83,8.01058218]
[1744812055793,36.91820568,124.88,124.83,44.92878786]
[1744812056712,36.91820568,124.89,124.84,36.91820568]
[1744812057208,36.91820568,124.88,124.84,36.91820568]
[1744812057508,36.91820568,124.87,124.82,55.56785454]
[1744812057707,36.91820568,124.87,124.83,36.91820568]
[1744812057882,8.00720571,124.89,124.83,36.91820568]
[1744812058083,36.91820568,124.88,124.83,36.91820568]
[1744812058309,36.91820568,124.88,124.85,8.00961153]
[1744812058809,36.91820568,124.88,124.84,44.92811881]
[1744812059193,36.91820568,124.88,124.84,8.00991313]
[1744812059408,44.92541139,124.89,124.84,44.92811881]
[1744812060604,36.91820568,124.88,124.83,44.92910049]
[1744812060797,36.91820568,124.87,124.83,8.01089481]
[1744812061109,36.91820568,124.87,124.82,55.56785454]
[1744812061110,36.91820568,124.87,124.82,36.91820568]
[1744812061308,62.91820568,124.88,124.83,36.91820568]
[1744812061497,36.91820568,124.87,124.82,36.91820568]
[1744812062006,36.91820568,124.86,124.82,36.91820568]
[1744812062515,36.91820568,124.85,124.81,8.01192326]
[1744812062681,44.92830817,124.85,124.81,8.01192326]
[1744812062885,36.91820568,124.83,124.78,44.9323105]
[1744812063390,36.91820568,124.83,124.79,36.91820568]
[1744812063588,34.01010249,124.85,124.78,36.91820568]
[1744812063589,36.91820568,124.82,124.78,36.91820568]
[1744812063794,136.93413132,124.85,124.76,36.91820568]
[1744812063795,36.91820568,124.81,124.76,36.91820568]
[1744812064603,36.91820568,124.81,124.77,8.01474713]
[1744812064794,1.5937,124.86,124.8,36.91820568]
[1744812065111,9.56394208,124.9,124.85,36.91820568]
[1744812065285,72.48214776,124.9,124.85,36.91820568]
[1744812065491,36.91820568,124.89,124.81,25.30264886]
[1744812065690,36.91820568,124.89,124.85,36.91820568]
[1744812065894,72.48214776,124.9,124.86,36.91820568]
[1744812066103,35.56394208,124.9,124.86,36.91820568]
[1744812066325,6.5657,124.91,124.87,36.91820568]
[1744812066496,51.48973726,124.91,124.86,36.91820568]
[1744812066813,36.91820568,124.9,124.85,44.92749872]
[1744812067013,36.91820568,124.89,124.85,44.92749872]
[1744812067209,40.57153158,124.91,124.85,44.92749872]
[1744812067514,36.91820568,124.9,124.85,44.92749872]
[1744812068411,44.9247195,124.9,124.85,44.92749872]
[1744812068620,44.9247195,124.9,124.81,25.30264886]
[1744812068621,36.91820568,124.89,124.84,44.9281318]
[1744812069312,26.0,124.88,124.82,8.01153661]
[1744812069511,62.91820568,124.92,124.87,36.91820568]
[1744812069712,26.0,124.92,124.88,36.91820568]
[1744812070009,36.91820568,124.91,124.86,36.91820568]
[1744812070188,36.91820568,124.91,124.84,18.64964886]
[1744812070391,44.92417179,124.91,124.86,8.00845791]
[1744812070692,36.91820568,124.9,124.86,44.92666359]
[1744812071007,70.92341574,124.92,124.87,36.91820568]
[1744812071213,44.92341574,124.92,124.87,36.91820568]
[1744812071584,36.91820568,124.89,124.84,36.91820568]
[1744812071817,26.0,124.9,124.8,1.5739]
[1744812071985,36.91820568,124.84,124.81,8.01185826]
[1744812072612,26.0,124.9,124.84,18.64964886]
[1744812072907,26.0,124.9,124.87,36.91820568]
[1744812073309,26.0,124.9,124.86,36.91820568]
[1744812073617,62.91820568,124.9,124.85,36.91820568]
[1744812073989,26.0,124.9,124.87,36.91820568]
[1744812074604,26.0,124.9,124.84,18.64964886]
[1744812074605,70.92485193,124.9,124.84,18.64964886]
[1744812074815,26.0,124.9,124.86,36.91820568]
[1744812075228,8.00360039,124.95,124.89,36.91820568]
[1744812075513,26.0,124.94,124.9,36.91820568]
[1744812075715,36.91820568,124.92,124.85,6.3098]
[1744812075887,36.91820568,124.9,124.84,28.03588592]
[1744812076093,36.91820568,124.89,124.85,36.91820568]
[1744812076296,62.91820568,124.9,124.85,36.91820568]
[1744812076623,36.91820568,124.89,124.84,44.9284588]
[1744812076922,36.91820568,124.89,124.81,6.3224]
[1744812076923,36.91820568,124.85,124.79,36.91820568]
[1744812077119,36.91820568,124.84,124.79,36.91820568]
[1744812077304,36.91820568,124.86,124.81,36.91820568]
[1744812077620,36.91820568,124.85,124.81,36.91820568]
[1744812077919,36.91820568,124.86,124.81,36.91820568]
[1744812078221,36.91820568,124.85,124.81,36.91820568]
[1744812078516,8.00674492,124.9,124.84,36.91820568]
[1744812078719,26.0,124.91,124.87,36.91820568]
[1744812078946,70.92410116,124.91,124.86,36.91820568]
[1744812079818,36.91820568,124.9,124.86,36.91820568]
[1744812080021,36.91820568,124.9,124.84,8.00996609]
[1744812080193,36.91820568,124.9,124.85,36.91820568]
[1744812080393,70.92410116,124.91,124.86,36.91820568]
[1744812080812,70.92410116,124.91,124.86,44.92707709]
[1744812081313,36.91820568,124.9,124.86,44.92707709]
[1744812081515,36.91820568,124.89,124.83,18.64964886]
[1744812081816,36.91820568,124.9,124.86,36.91820568]
[1744812082021,36.91820568,124.9,124.85,36.91820568]
[1744812082197,70.92410116,124.91,124.87,36.91820568]
[1744812082398,70.92410116,124.91,124.86,36.91820568]
[1744812083102,70.92410116,124.91,124.87,36.91820568]
[1744812083299,8.00543147,124.92,124.88,36.91820568]
[1744812083703,44.92363715,124.92,124.88,36.91820568]
[1744812083896,44.92363715,124.92,124.87,36.91820568]
[1744812084321,122.95862447,124.93,124.88,36.91820568]
[1744812084617,70.92270277,124.93,124.87,18.64964886]
[1744812084924,36.91820568,124.92,124.86,8.00895201]
[1744812085119,44.92377616,124.92,124.87,44.9263105]
[1744812085417,8.00557048,124.92,124.88,36.91820568]
[1744812085608,44.92377616,124.92,124.87,44.9263105]
[1744812086118,70.92286727,124.93,124.89,36.91820568]
[1744812086298,62.91820568,124.93,124.89,36.91820568]
[1744812086498,26.0,124.93,124.89,36.91820568]
[1744812086906,8.00336172,124.95,124.91,36.91820568]
[1744812087115,44.9215674,124.95,124.9,36.91820568]
[1744812087307,36.91820568,124.93,124.89,36.91820568]
[1744812087822,36.91820568,124.94,124.89,36.91820568]
[1744812088418,44.92210585,124.94,124.9,8.00640512]
[1744812088628,36.91820568,124.94,124.9,8.00640512]
[1744812089126,36.91820568,124.94,124.9,44.9246108]
[1744812089329,77.2633615,124.96,124.91,36.91820568]
[1744812089500,36.91820568,124.95,124.91,36.91820568]
[1744812089705,36.91820568,124.94,124.89,44.92506243]
[1744812090112,36.91820568,124.93,124.89,44.92506243]
[1744812090525,44.92347911,124.92,124.87,26.6577581]
[1744812090702,44.92347911,124.92,124.87,63.57596378]
[1744812091224,36.91820568,124.89,124.85,63.57746607]
[1744812091439,36.91820568,124.86,124.81,6.4962]
[1744812091598,36.91820568,124.85,124.8,56.94872646]
[1744812091801,36.91820568,124.84,124.81,8.01187745]
[1744812092124,36.91820568,124.85,124.81,8.01187745]
[1744812092299,108.9,124.89,124.81,8.01187745]
[1744812092300,108.9,124.89,124.81,44.93008313]
[1744812092505,8.0070462,124.89,124.84,36.91820568]
[1744812092705,44.92525188,124.89,124.84,36.91820568]
[1744812093228,36.91820568,124.85,124.8,44.93077859]
[1744812093427,36.91820568,124.84,124.79,44.93134646]
[1744812093605,36.91820568,124.83,124.79,44.93134646]
[1744812093806,26.0,124.87,124.79,44.93134646]
[1744812093807,36.91820568,124.85,124.8,36.91820568]
[1744812094128,26.0,124.87,124.81,36.91820568]
[1744812094427,62.91820568,124.87,124.82,36.91820568]
[1744812094624,36.91820568,124.86,124.82,8.01121695]
[1744812095319,36.91820568,124.85,124.8,63.58036438]
[1744812095813,36.91820568,124.83,124.78,14.65948599]
[1744812096021,36.91820568,124.81,124.77,8.01474713]
[1744812096229,54.02948249,124.87,124.79,36.91820568]
[1744812096424,36.91820568,124.86,124.81,36.91820568]
[1744812096734,36.91820568,124.85,124.81,44.92994608]
[1744812096931,36.91820568,124.83,124.77,20.03686783]
[1744812097121,36.91820568,124.82,124.78,55.56785454]
[1744812097325,36.91820568,124.82,124.78,8.01358569]
[1744812097736,36.91820568,124.81,124.76,83.09305454]
[1744812097942,36.91820568,124.81,124.76,81.56785454]
[1744812098537,36.91820568,124.81,124.77,36.91820568]
[1744812098711,70.92921744,124.83,124.78,44.9323105]
[1744812098913,36.91820568,124.82,124.78,44.9323105]
[1744812099241,36.91820568,124.82,124.77,44.93274901]
[1744812101139,62.91820568,124.83,124.78,55.56785454]
[1744812101610,36.91820568,124.84,124.79,36.91820568]
[1744812101811,62.91820568,124.86,124.81,36.91820568]
[1744812102041,36.91820568,124.86,124.81,36.91820568]
[1744812102336,36.91820568,124.86,124.78,44.64964886]
[1744812102337,36.91820568,124.84,124.8,36.91820568]
[1744812102716,36.91820568,124.85,124.8,36.91820568]
[1744812102929,44.92851132,124.84,124.79,44.93107611]
[1744812103130,36.91820568,124.82,124.78,26.66345431]
[1744812103440,36.91820568,124.81,124.77,8.01474713]
[1744812106736,8.01184238,124.82,124.77,8.01474713]
[1744812106942,36.91820568,124.8,124.77,8.01474713]
[1744812107143,36.91820568,124.8,124.76,63.58324408]
[1744812107347,36.91820568,124.8,124.76,36.91820568]
[1744812107543,36.91820568,124.8,124.75,36.91820568]
[1744812107718,36.91820568,124.8,124.76,36.91820568]
[1744812107916,36.91820568,124.82,124.78,36.91820568]
[1744812108119,8.00802009,124.88,124.81,36.91820568]
[1744812108343,44.92622577,124.88,124.84,36.91820568]
[1744812108648,44.92622577,124.88,124.83,36.91820568]
[1744812109144,44.92622577,124.88,124.83,44.92863312]
[1744812109617,36.91820568,124.87,124.83,8.01042744]
[1744812109820,36.91820568,124.87,124.83,44.92863312]
[1744812110132,36.91820568,124.87,124.83,36.91820568]
[1744812111538,43.52620568,124.92,124.86,36.91820568]
[1744812111741,51.5315555,124.92,124.87,36.91820568]
[1744812111927,62.91820568,124.91,124.86,36.91820568]
[1744812112241,44.92474019,124.9,124.85,36.91820568]
[1744812112447,36.91820568,124.88,124.84,8.01025312]
[1744812113020,36.91820568,124.89,124.84,44.9284588]
[1744812113328,36.91820568,124.88,124.84,8.01025312]
[1744812113923,26.0,124.91,124.86,36.91820568]
[1744812114247,70.92417834,124.91,124.86,36.91820568]
[1744812114841,70.92417834,124.91,124.87,36.91820568]
[1744812115150,256.1292,124.95,124.88,36.91820568]
[1744812115328,44.92204752,124.94,124.89,36.91820568]
[1744812115526,44.92204752,124.94,124.9,8.00640512]
[1744812116248,20.00658183,124.96,124.9,8.00640512]
[1744812116249,36.91820568,124.96,124.91,36.91820568]
[1744812116544,36.91820568,124.94,124.9,44.9246108]
[1744812116922,26.0,124.95,124.9,44.9246108]
[1744812117147,36.91820568,124.94,124.9,8.00640512]
[1744812117350,36.91820568,124.94,124.9,44.9246108]
[1744812117647,36.91820568,124.93,124.89,8.00674975]
[1744812118433,36.91820568,124.93,124.88,44.9255882]
[1744812118754,36.91820568,124.92,124.87,36.91820568]
[1744812118965,28.01350047,124.94,124.88,36.91820568]
[1744812119126,28.01350047,124.94,124.86,18.64964886]
[1744812119127,44.92339818,124.92,124.87,44.92622425]
[1744812119855,20.00688197,124.96,124.89,36.91820568]
[1744812120056,8.00256081,124.96,124.92,36.91820568]
[1744812120263,36.91820568,124.94,124.89,62.91820568]
[1744812120629,36.91820568,124.94,124.89,36.91820568]
[1744812121241,36.91820568,124.93,124.9,8.00640512]
[1744812121757,36.91820568,124.93,124.89,8.00682112]
[1744812121942,36.91820568,124.92,124.89,8.00682112]
[1744812122262,36.91820568,124.93,124.89,8.00682112]
[1744812122753,36.91820568,124.92,124.89,8.00682112]
[1744812122961,36.91820568,124.92,124.88,8.00742829]
[1744812123258,36.91820568,124.91,124.88,8.00742829]
[1744812123760,36.91820568,124.92,124.88,8.00742829]
[1744812124959,36.91820568,124.94,124.89,55.56785454]
[1744812125140,34.00287794,124.96,124.9,36.91820568]
[1744812125458,36.91820568,124.95,124.9,36.91820568]
[1744812125664,36.91820568,124.94,124.89,55.56785454]
[1744812125867,36.91820568,124.92,124.88,8.00742829]
[1744812126153,36.91820568,124.92,124.89,18.64964886]
[1744812126360,36.91820568,124.93,124.89,55.56785454]
[1744812126732,36.91820568,124.94,124.89,55.56785454]
[1744812126932,36.91820568,124.95,124.91,26.65541301]
[1744812127133,8.0021036,124.97,124.91,26.65541301]
[1744812127336,36.91820568,124.95,124.91,26.65541301]
[1744812127957,36.91820568,124.94,124.91,26.65541301]
[1744812128459,34.0021036,124.97,124.91,71.28191869]
[1744812128658,36.91820568,124.95,124.91,71.28191869]
[1744812128857,36.91820568,124.95,124.91,34.36371301]
[1744812129037,36.91820568,124.94,124.91,26.65541301]
[1744812129956,36.91820568,124.94,124.86,76.96206645]
[1744812129957,36.91820568,124.92,124.85,7.5868]
[1744812130151,36.91820568,124.89,124.85,44.50500568]
[1744812130347,36.91820568,124.91,124.86,36.91820568]
[1744812131162,36.91820568,124.9,124.87,8.00832866]
[1744812131372,36.91820568,124.9,124.86,8.00863695]
[1744812131555,36.91820568,124.87,124.84,18.64964886]
[1744812131750,36.91820568,124.88,124.84,55.56785454]
[1744812132146,36.91820568,124.89,124.84,55.56785454]
[1744812132348,8.00541368,124.92,124.86,36.91820568]
[1744812132549,36.91820568,124.9,124.86,36.91820568]
[1744812132855,36.91820568,124.89,124.85,18.64964886]
[1744812133054,36.91820568,124.89,124.86,8.00897004]
[1744812133272,36.91820568,124.87,124.83,26.0]
[1744812133435,36.91820568,124.85,124.81,7.8315]
[1744812134463,36.91820568,124.85,124.81,15.84339056]
[1744812135371,36.91820568,124.85,124.81,52.76159624]
[1744812136062,8.00668201,124.9,124.84,18.64964886]
[1744812136263,8.00448251,124.93,124.87,36.91820568]
[1744812136471,8.00448251,124.93,124.88,36.91820568]
[1744812136472,36.91820568,124.92,124.88,36.91820568]
[1744812137477,26.1445781,124.97,124.88,36.91820568]
[1744812137663,36.91820568,124.95,124.91,36.91820568]
[1744812137971,44.92154849,124.95,124.9,36.91820568]
[1744812138180,36.91820568,124.94,124.9,36.91820568]
[1744812138361,36.91820568,124.94,124.9,55.56785454]
[1744812138566,8.00229193,124.97,124.92,36.91820568]
[1744812138758,44.92049761,124.97,124.92,36.91820568]
[1744812138961,70.92049761,124.97,124.92,36.91820568]
[1744812139282,8.00020945,125.0,124.95,36.91820568]
[1744812139461,8.00020945,125.0,124.94,36.91820568]
[1744812139462,36.91820568,124.99,124.94,36.91820568]
[1744812139780,36.91820568,124.98,124.93,55.56785454]
[1744812139949,36.91820568,124.98,124.94,8.00384184]
[1744812140572,36.91820568,124.98,124.94,44.92204752]
[1744812140759,36.91820568,124.98,124.94,8.00384184]
[1744812141069,8.00032289,125.0,124.94,44.92204752]
[1744812141369,36.91820568,124.99,124.94,44.92204752]
[1744812141549,36.91820568,124.98,124.94,8.00384184]
[1744812141750,36.91820568,124.97,124.89,28.02345932]
[1744812141965,36.91820568,124.95,124.92,18.64964886]
[1744812142168,36.91820568,124.96,124.92,18.64964886]
[1744812142880,36.91820568,124.95,124.92,18.64964886]
[1744812143182,36.91820568,124.96,124.92,18.64964886]
[1744812143973,36.91820568,124.96,124.93,8.00448251]
[1744812144479,36.91820568,124.97,124.93,8.00448251]
[1744812144663,36.91820568,124.97,124.93,26.65413137]
[1744812145072,62.91820568,124.98,124.94,18.64964886]
[1744812145367,36.91820568,124.97,124.94,18.64964886]
[1744812145774,36.91820568,124.97,124.93,8.00448251]
[1744812145982,34.00145509,124.98,124.93,8.00448251]
[1744812145983,36.91820568,124.96,124.93,8.00448251]
[1744812146167,36.91820568,124.97,124.93,8.00448251]
[1744812147174,36.91820568,124.96,124.93,8.00448251]
[1744812147880,34.00145509,124.98,124.93,8.00448251]
[1744812148085,295.93083902,125.03,124.95,36.91820568]
[1744812148086,255.9394,125.03,124.95,36.91820568]
[1744812148376,255.9394,125.03,124.92,18.64964886]
[1744812148377,36.91820568,124.96,124.92,18.64964886]
[1744812148580,36.91820568,124.95,124.92,18.64964886]
[1744812149580,36.91820568,124.97,124.92,63.57267764]
[1744812149779,36.91820568,124.95,124.92,26.65447196]
[1744812149962,36.91820568,124.93,124.9,8.00640512]
[1744812150464,36.91820568,124.92,124.89,26.65638681]
[1744812150759,36.91820568,124.93,124.89,26.65638681]
[1744812151356,36.91820568,124.93,124.9,18.64964886]
[1744812151968,36.91820568,124.93,124.91,8.00576415]
[1744812153262,36.91820568,124.94,124.92,18.64964886]
[1744812153470,36.91820568,124.95,124.92,18.64964886]
[1744812153684,36.91820568,124.94,124.92,18.64964886]
[1744812153886,44.91974437,124.98,124.92,18.64964886]
[1744812154191,36.91820568,124.95,124.92,26.65424156]
[1744812154560,36.91820568,124.94,124.92,26.65424156]
[1744812155065,36.91820568,124.93,124.91,8.00576415]
[1744812155284,36.91820568,124.92,124.88,1.5174]
[1744812155585,26.0,124.95,124.89,26.65643947]
[1744812155774,36.91820568,124.93,124.89,26.65643947]
[1744812156672,36.91820568,124.94,124.89,63.57464515]
[1744812156981,36.91820568,124.93,124.89,46.67405497]
[1744812157786,34.002863,124.96,124.89,46.67405497]
[1744812157787,36.91820568,124.92,124.89,46.67405497]
[1744812158284,36.91820568,124.91,124.89,26.65643947]
[1744812158487,36.91820568,124.9,124.87,26.6576589]
[1744812158781,36.91820568,124.89,124.87,26.6576589]
[1744812159489,36.91820568,124.89,124.86,8.00867549]
[1744812159661,36.91820568,124.88,124.86,8.00867549]
[1744812159862,36.91820568,124.87,124.84,8.00965021]
[1744812160062,36.91820568,124.87,124.84,26.65929907]
[1744812161085,36.91820568,124.87,124.82,18.64964886]
[1744812161290,36.91820568,124.84,124.78,14.27430571]
[1744812161469,36.91820568,124.83,124.79,26.0]
[1744812161669,36.91820568,124.82,124.79,8.01346261]
[1744812162263,36.91820568,124.8,124.77,8.01474713]
[1744812162863,8.01100952,124.83,124.77,8.01474713]
[1744812163063,36.91820568,124.83,124.78,55.56785454]
[1744812163272,26.0,124.86,124.81,18.64964886]
[1744812163567,62.91820568,124.86,124.82,18.64964886]
[1744812163989,36.91820568,124.85,124.82,18.64964886]
[1744812164286,36.91820568,124.85,124.83,8.01089481]
[1744812165460,36.91820568,124.84,124.81,8.01217851]
[1744812165663,36.91820568,124.83,124.81,8.01217851]
[1744812165892,36.91820568,124.82,124.77,18.64964886]
[1744812166197,36.91820568,124.8,124.77,26.66439599]
[1744812166369,36.91820568,124.81,124.77,26.66439599]
[1744812166872,8.0105356,124.84,124.78,36.91820568]
[1744812167073,36.91820568,124.82,124.78,36.91820568]
[1744812167273,36.91820568,124.82,124.77,83.6194695]
[1744812167662,36.91820568,124.83,124.79,18.64964886]
[1744812167862,36.91820568,124.83,124.79,36.91820568]
[1744812168077,36.91820568,124.83,124.78,55.56785454]
[1744812168391,36.91820568,124.83,124.79,8.01346261]
[1744812168693,34.00944435,124.86,124.8,55.56785454]
[1744812168878,36.91820568,124.85,124.8,55.56785454]
[1744812169388,36.91820568,124.83,124.79,8.01346261]
[1744812169575,36.91820568,124.82,124.79,8.01346261]
[1744812169776,36.91820568,124.81,124.78,8.0138546]
[1744812169980,36.91820568,124.8,124.77,8.01446379]
[1744812170382,36.91820568,124.81,124.77,8.01446379]
[1744812170767,36.91820568,124.8,124.76,8.01515758]
[1744812171504,36.91820568,124.8,124.76,44.93336326]
[1744812171871,36.91820568,124.82,124.78,36.91820568]
[1744812172071,62.91820568,124.83,124.78,36.91820568]
[1744812172372,36.91820568,124.82,124.77,55.56785454]
[1744812172576,36.91820568,124.82,124.78,36.91820568]
[1744812173112,62.91820568,124.83,124.79,8.01346261]
[1744812173277,62.91820568,124.85,124.8,36.91820568]
[1744812173482,26.0,124.85,124.81,36.91820568]
[1744812173704,36.91820568,124.84,124.8,55.56785454]
[1744812174381,36.91820568,124.84,124.8,18.64964886]
[1744812174581,36.91820568,124.84,124.81,8.01217851]
[1744812174996,62.91820568,124.85,124.81,8.01217851]
[1744812175579,36.91820568,124.84,124.81,8.01217851]
[1744812177008,8.00925414,124.86,124.81,8.01217851]
[1744812177009,62.91820568,124.87,124.82,36.91820568]
[1744812177212,26.0,124.87,124.83,36.91820568]
[1744812177386,62.91820568,124.87,124.83,36.91820568]
[1744812177586,36.91820568,124.85,124.81,8.01217851]
[1744812177788,36.91820568,124.84,124.81,8.01217851]
[1744812177995,36.91820568,124.83,124.81,8.01217851]
[1744812178194,36.91820568,124.84,124.81,8.01217851]
[1744812178785,36.91820568,124.84,124.8,8.01282051]
[1744812178981,36.91820568,124.83,124.8,8.01282051]
[1744812180993,36.91820568,124.85,124.8,44.93102619]
[1744812181508,36.91820568,124.85,124.8,8.01282051]
[1744812181707,36.91820568,124.83,124.79,8.01312015]
[1744812181896,36.91820568,124.84,124.79,44.93132583]
[1744812182497,36.91820568,124.83,124.79,44.93132583]
[1744812182805,36.91820568,124.83,124.79,8.01312015]
[1744812183305,8.00995318,124.85,124.79,44.93132583]
[1744812183497,36.91820568,124.84,124.79,44.93132583]
[1744812183902,8.0092592,124.86,124.81,36.91820568]
[1744812184202,36.91820568,124.85,124.8,55.56785454]